bitfinex/quotes_ETHUSD_20220215
["timestamp","ask_amount","ask_price","bid_price","bid_amount"]
[1644951864110,2.25590927,3116.9,3116.7,0.30576939]
[1644951864408,0.45367927,3116.8,3116.7,0.30576939]
[1644951864609,0.45367927,3116.8,3116.7,0.30822168]
[1644951865209,0.45367927,3116.8,3116.7,0.30576939]
[1644951865610,4.07606814,3116.8,3116.7,0.30576939]
[1644951865908,1.75367927,3116.8,3116.7,0.30576939]
[1644951866564,5.06092797,3116.8,3116.7,0.30576939]
[1644951868963,5.06092797,3116.8,3115.8,0.00356116]
[1644951869265,3.209453,3116.5,3116.1,0.73757828]
[1644951869462,0.45367927,3116.4,3116.2,0.89801122]
[1644951869662,1.604723,3116.5,3116.3,0.89445006]
[1644951869861,2.604723,3116.5,3116.3,1.62572888]
[1644951870064,3.407043,3116.5,3116.4,0.89416209]
[1644951870316,3.407043,3116.5,3116.4,0.89432434]
[1644951870514,3.357043,3116.5,3116.4,0.89432413]
[1644951871316,3.81083132,3116.5,3116.4,0.89432413]
[1644951871516,3.81083132,3116.5,3116.3,0.73374261]
[1644951871818,4.159333,3116.5,3116.3,0.73374261]
[1644951872116,0.89947139,3116.5,3116.4,0.89449601]
[1644951872316,0.8022578,3116.6,3116.4,0.89449601]
[1644951872516,0.8022578,3116.6,3116.4,1.73528328]
[1644951872715,0.8022578,3116.6,3116.5,0.89449601]
[1644951872916,0.8022578,3116.6,3116.5,0.89805717]
[1644951873317,1.6043978,3116.6,3116.5,0.89805717]
[1644951876057,1.6043978,3116.6,3116.5,0.89449601]
[1644951876258,2.0854217,3116.6,3116.5,0.89449601]
[1644951876458,1.6043978,3116.6,3116.5,0.89449601]
[1644951876657,2.0853747,3116.6,3116.4,0.84324836]
[1644951876860,2.0853747,3116.6,3116.5,0.86780681]
[1644951876861,1.6043978,3116.6,3116.5,0.86780681]
[1644951877156,1.77734345,3116.7,3116.5,0.86780681]
[1644951877557,1.43817043,3116.7,3116.4,0.84324836]
[1644951878608,1.43817043,3116.7,3116.4,0.84078727]
[1644951878809,0.8022578,3116.6,3116.4,0.84324785]
[1644951879008,1.6043978,3116.6,3116.4,0.84324785]
[1644951879809,1.6043978,3116.6,3116.4,0.84078727]
[1644951881313,2.76879,3117.2,3116.5,3.2897041]
[1644951881570,2.76879,3117.2,3116.5,3.7527041]
[1644951881765,1.60409,3117.2,3116.6,0.84075662]
[1644951882163,1.60409,3117.2,3116.6,4.11460927]
[1644951882367,1.60409,3117.2,3117.1,0.88901202]
[1644951882664,1.55409,3117.2,3117.1,0.88901202]
[1644951883668,1.6041118,3117.1,3117.0,0.00246033]
[1644951884470,1.6041118,3117.1,3116.6,0.84075662]
[1644951884670,2.4062818,3117.1,3116.6,0.84075662]
[1644951884868,0.8021537,3117.0,3116.9,0.00246039]
[1644951885711,0.8021537,3117.0,3116.6,0.84075662]
[1644951885712,0.80214,3116.9,3116.6,0.84075662]
[1644951885908,0.8021146,3116.9,3116.5,0.463]
[1644951886112,0.80213,3117.0,3116.8,0.00246041]
[1644951886309,3.2085374,3117.1,3116.8,0.00246041]
[1644951886910,0.80213,3117.0,3116.5,0.463]
[1644951887213,0.80213,3116.9,3116.8,0.00246041]
[1644951887712,0.80213,3116.9,3116.3,0.0098431]
[1644951887911,2.406434,3116.9,3116.4,0.463]
[1644951888410,2.406462,3116.8,3116.4,0.463]
[1644951888611,1.604312,3116.8,3116.4,0.463]
[1644951888809,1.604312,3116.8,3116.6,1.14729996]
[1644951891559,2.406402,3116.8,3116.6,1.14729996]
[1644951892059,0.94901001,3116.8,3116.6,1.14729996]
[1644951892723,1.75117001,3116.8,3116.6,1.14729996]
[1644951894021,0.80216,3116.8,3116.6,1.14729996]
[1644951895023,2.4063513,3116.8,3116.6,1.14729996]
[1644951895222,2.4063513,3116.8,3116.5,0.50270316]
[1644951895421,2.4063513,3116.8,3116.5,0.5]
[1644951895422,1.6042513,3116.8,3116.5,0.5]
[1644951895621,1.6042513,3116.8,3116.5,0.50270316]
[1644951896224,0.80214,3116.7,3116.5,0.50270316]
[1644951896659,0.80214,3116.7,3116.5,0.5]
[1644951896960,1.6046316,3116.6,3116.4,0.00270331]
[1644951897361,0.50040223,3116.5,3116.4,0.00270331]
[1644951897562,1.30272223,3116.5,3116.4,0.00270331]
[1644951897760,1.30272223,3116.5,3116.2,0.85059799]
[1644951897960,1.30272223,3116.5,3116.3,0.00270341]
[1644951897961,4.54627999,3116.4,3116.3,0.00270341]
[1644951898361,4.54627999,3116.4,3116.3,0.8533014]
[1644951898560,4.54627999,3116.4,3116.3,0.00270341]
[1644951898763,6.45108999,3116.4,3116.3,0.00270341]
[1644951899061,0.80251,3116.2,3115.9,0.85059799]
[1644951899276,0.80251,3116.2,3115.4,2.2213632]
[1644951899277,4.64825327,3116.1,3116.0,0.85059799]
[1644951899460,4.64825327,3116.1,3115.7,0.01081552]
[1644951899461,4.64825327,3116.1,3115.8,0.85059799]
[1644951899662,0.8024882,3116.1,3115.9,0.85059799]
[1644951899863,0.50076961,3116.0,3115.7,0.01081552]
[1644951900071,1.30319961,3116.0,3115.8,0.85141555]
[1644951900312,2.4073417,3116.0,3115.8,0.85141555]
[1644951900512,2.4073417,3116.0,3115.9,0.85141555]
[1644951900713,1.6049117,3116.0,3115.9,0.85141555]
[1644951901914,2.10574013,3116.0,3115.9,0.85141555]
[1644951902718,1.6049117,3116.0,3115.9,0.85141555]
[1644951903317,0.8023,3116.2,3115.9,0.85141555]
[1644951903519,0.8023,3116.2,3116.0,0.00460932]
[1644951903717,1.8445,3116.7,3116.1,0.85141555]
[1644951903964,4.2903,3116.8,3116.1,1.10141555]
[1644951903965,0.50075984,3116.6,3116.1,1.10141555]
[1644951904164,0.50075984,3116.6,3116.5,0.5]
[1644951904165,1.60447,3116.6,3116.5,0.5]
[1644951904366,1.60447,3116.6,3116.5,1.657282]
[1644951904965,2.10518804,3116.6,3116.5,1.657282]
[1644951905165,2.10518804,3116.6,3116.5,2.50913202]
[1644951905764,2.10518804,3116.6,3116.5,1.35185002]
[1644951906565,1.61516319,3116.6,3116.5,1.35185002]
[1644951906766,1.59393087,3116.6,3116.5,1.35185002]
[1644951907065,1.59393087,3116.6,3116.5,0.85185002]
[1644951907464,1.6046976,3116.5,3116.2,0.85185002]
[1644951907710,1.6046976,3116.5,3116.4,0.00270334]
[1644951907912,2.10536681,3116.5,3116.4,0.85445334]
[1644951908108,2.10536681,3116.5,3116.4,0.00270334]
[1644951908509,2.90771681,3116.5,3116.2,0.85175]
[1644951908710,2.90774921,3116.4,3116.2,0.85175]
[1644951908910,3.2094376,3116.4,3116.3,0.0027034]
[1644951909110,6.14940233,3116.4,3116.3,0.0027034]
[1644951909309,7.14940233,3116.4,3116.3,0.0027034]
[1644951909711,7.74940233,3116.4,3116.3,0.0027034]
[1644951909908,0.80255,3116.2,3116.0,0.00460932]
[1644951910110,0.80255,3116.2,3115.7,0.01081548]
[1644951910111,6.62606484,3116.1,3115.7,0.01081548]
[1644951910309,1.0,3116.0,3115.7,0.01081548]
[1644951910513,1.0,3116.0,3115.8,0.85210708]
[1644951910514,0.50070986,3115.9,3115.8,0.85210708]
[1644951910710,0.50070986,3115.9,3115.8,0.8567164]
[1644951911459,0.80255,3116.0,3115.8,0.8567164]
[1644951911660,0.80255,3116.0,3115.9,0.85210708]
[1644951911864,1.30313839,3116.0,3115.9,0.85210708]
[1644951912060,0.80255,3116.0,3115.9,1.12338069]
[1644951912260,0.80255,3116.0,3115.9,0.85210708]
[1644951912261,2.10556537,3116.0,3115.9,0.85210708]
[1644951912461,1.6049484,3116.0,3115.8,0.85481081]
[1644951912661,0.50060853,3115.9,3115.8,0.00731305]
[1644951912860,1.6049484,3116.0,3115.8,0.85445178]
[1644951913063,1.6049484,3116.0,3115.9,0.85174805]
[1644951913263,2.10552304,3116.0,3115.9,0.85174805]
[1644951913462,2.10552304,3116.0,3115.7,0.85635737]
[1644951913463,2.10553449,3116.0,3115.7,0.85635737]
[1644951913664,5.10303849,3115.9,3115.8,0.00270373]
[1644951913864,5.10303849,3115.9,3115.3,0.8519104]
[1644951913865,5.25,3115.8,3115.3,0.8519104]
[1644951914065,4.00058609,3115.7,3115.3,0.8519104]
[1644951914265,1.60339609,3115.6,3115.3,0.8519104]
[1644951914564,1.60339609,3115.6,3115.3,0.84109387]
[1644951914565,1.30335609,3115.5,3115.3,0.84109387]
[1644951914766,1.30335609,3115.5,3113.9,1.0]
[1644951914767,22.89058609,3115.4,3113.9,1.0]
[1644951914967,22.89058609,3115.4,3113.5,11.60739245]
[1644951914968,23.89,3114.9,3113.5,0.8022]
[1644951915223,23.89,3114.9,3113.1,0.60389434]
[1644951915224,0.80324,3114.0,3113.1,0.60389434]
[1644951915419,0.01257465,3113.6,3112.9,0.60389434]
[1644951915622,0.8032916,3113.3,3113.0,0.93127212]
[1644951916119,1.1032916,3113.3,3113.0,0.93127212]
[1644951916319,0.8032916,3113.3,3113.0,0.93127212]
[1644951917019,0.8032,3113.2,3113.0,0.93127212]
[1644951917221,0.8032,3113.2,3113.0,0.00199599]
[1644951917420,0.8032487,3113.1,3113.0,0.00199599]
[1644951917718,1.1032487,3113.1,3113.0,0.00199599]
[1644951917920,7.69100826,3113.1,3113.0,0.00199599]
[1644951918119,3.3782087,3113.1,3113.0,0.00199599]
[1644951918322,4.3782087,3113.1,3112.3,0.60389434]
[1644951918520,4.3782087,3113.1,3112.2,0.25]
[1644951918720,4.3782087,3113.1,3112.4,0.04206334]
[1644951918721,5.1814887,3113.1,3112.4,0.04206334]
[1644951918982,1.0,3113.0,3112.4,0.04206334]
[1644951919371,1.0,3113.0,3112.2,0.04320018]
[1644951919571,0.8032487,3113.1,3112.2,0.04320018]
[1644951919771,7.8079932,3113.2,3112.2,5.04320018]
[1644951919971,7.8079932,3113.2,3112.3,3.963]
[1644951920271,7.8079932,3113.2,3112.5,1.3]
[1644951920472,7.8079932,3113.2,3112.6,0.80302]
[1644951920670,7.8079932,3113.2,3112.8,0.99302811]
[1644951920874,7.8079932,3113.2,3112.8,1.24302811]
[1644951921869,1.6061749,3113.9,3112.8,1.24302811]
[1644951922069,1.9061749,3113.9,3112.8,1.24587376]
[1644951922818,1.6061871,3113.5,3112.8,1.24587376]
[1644951923016,1.6061871,3113.5,3112.8,1.24302811]
[1644951923423,1.6061871,3113.5,3113.2,0.00284542]
[1644951923817,2.6060776,3113.7,3113.2,0.00284542]
[1644951924216,2.6060776,3113.7,3112.8,1.24302811]
[1644951924418,2.6060776,3113.7,3113.3,0.00284536]
[1644951925117,1.6060776,3113.7,3113.3,0.00284536]
[1644951925419,2.243,3114.1,3112.9,3.84295865]
[1644951925420,1.243,3114.1,3112.9,3.84295865]
[1644951925618,2.93353394,3114.2,3113.2,0.463]
[1644951925818,2.93353394,3114.2,3113.3,3.57707559]
[1644951926023,2.93353394,3114.2,3113.3,0.00284533]
[1644951926219,1.2074,3114.7,3114.1,1.17606535]
[1644951926460,2.6161,3114.9,3113.3,4.01730344]
[1644951926461,1.6056465,3114.6,3113.4,0.713]
[1644951926659,1.6056465,3114.6,3113.5,3.4438517]
[1644951926862,1.6056465,3114.6,3114.2,0.00284476]
[1644951927863,0.80289,3114.4,3113.7,0.84323326]
[1644951928064,1.6057739,3114.4,3114.2,0.00284476]
[1644951928463,1.9057739,3114.4,3114.2,0.00284476]
[1644951929064,1.9057739,3114.4,3113.5,0.00455473]
[1644951929267,0.8030579,3114.0,3113.7,0.01138099]
[1644951929668,2.4092079,3114.0,3113.7,0.01138099]
[1644951929868,0.3,3113.9,3113.7,0.01138099]
[1644951930069,1.8030579,3114.0,3113.7,0.01138099]
[1644951930319,1.1604,3114.9,3113.5,0.00455473]
[1644951930320,1.0,3114.4,3113.5,0.00455473]
[1644951930513,3.23357237,3114.8,3113.6,0.00284514]
[1644951930718,0.80287,3114.7,3113.6,0.00284514]
[1644951930914,1.80287,3114.7,3113.6,0.00284514]
[1644951931114,1.605825,3114.5,3113.6,0.00284514]
[1644951931318,0.80285,3114.4,3113.6,0.00284514]
[1644951931514,0.80285,3114.4,3113.4,1.70116607]
[1644951931813,1.6059806,3114.3,3113.9,0.00284498]
[1644951932614,1.6059806,3114.3,3113.4,0.61755473]
[1644951933015,1.6059806,3114.3,3113.9,0.00284495]
[1644951933016,0.80293,3114.2,3113.9,0.00284495]
[1644951933215,1.90592,3114.2,3113.9,0.00284495]
[1644951933416,2.90592,3114.2,3113.9,0.00284495]
[1644951933615,2.90592,3114.2,3113.4,0.61755473]
[1644951933616,1.60592,3114.2,3113.4,0.38178118]
[1644951933821,0.14721099,3114.2,3113.4,0.38178118]
[1644951934061,0.14721099,3114.2,3113.9,0.00284498]
[1644951934962,0.80292,3114.2,3113.9,0.00284498]
[1644951935163,0.80292,3114.2,3113.4,0.39316281]
[1644951935164,0.80292,3114.2,3113.4,0.38178118]
[1644951936765,0.80292,3114.2,3113.3,0.25]
[1644951936964,0.803,3113.9,3113.3,0.25]
[1644951937364,1.6060033,3113.9,3113.3,0.25]
[1644951937564,1.6060033,3113.9,3113.7,0.5]
[1644951940511,2.7087,3114.3,3113.3,3.66412551]
[1644951940710,0.00284444,3114.4,3114.1,0.5]
[1644951941114,0.3,3114.7,3114.2,0.5]
[1644951941311,0.00284456,3114.4,3114.2,0.5]
[1644951941760,0.30284456,3114.4,3114.2,0.5]
[1644951942159,0.00284456,3114.4,3114.2,0.5]
[1644951942359,2.708603,3114.6,3114.2,0.5]
[1644951942559,0.80571454,3114.5,3114.2,0.5]
[1644951942759,1.60857544,3114.5,3114.2,0.5]
[1644951942962,1.60857544,3114.5,3113.8,0.463]
[1644951943560,1.6057309,3114.5,3113.8,0.463]
[1644951943760,0.00284454,3114.4,3113.8,0.463]
[1644951944164,0.30284454,3114.4,3113.8,0.463]
[1644951944763,1.6057309,3114.5,3113.8,0.463]
[1644951944962,0.00284452,3114.4,3113.8,0.463]
[1644951945811,0.80287,3114.5,3113.8,0.463]
[1644951946312,0.00284452,3114.4,3113.8,0.463]
[1644951946910,0.00284452,3114.4,3113.9,0.00453225]
[1644951947113,0.80287,3114.5,3113.9,0.00453225]
[1644951947313,0.00284452,3114.4,3113.9,0.00453225]
[1644951948113,0.80569452,3114.4,3113.9,0.00453225]
[1644951948313,0.80285,3114.4,3113.9,0.00453225]
[1644951948513,0.00284454,3114.4,3113.9,0.00453225]
[1644951949564,0.80281,3114.5,3113.9,0.00453225]
[1644951949763,0.00284454,3114.4,3113.9,0.00453225]
[1644951950170,0.00284454,3114.4,3114.0,0.79461688]
[1644951950367,1.60854084,3114.4,3114.1,0.00453225]
[1644951950565,1.90854084,3114.4,3113.9,0.00453225]
[1644951950765,1.9056963,3114.4,3113.5,0.00453225]
[1644951951165,1.90854085,3114.4,3113.6,0.79528343]
[1644951951366,1.90854085,3114.4,3113.4,0.25]
[1644951951367,1.6059,3114.3,3113.7,0.00453225]
[1644951951665,0.8029523,3114.1,3113.5,0.00453225]
[1644951951868,0.3,3114.0,3113.5,0.00453225]
[1644951952270,1.60588,3113.9,3113.5,0.00453225]
[1644951952468,0.80293,3113.8,3113.6,0.79543062]
[1644951952713,1.10293,3113.8,3113.7,0.00453225]
[1644951953113,1.10293,3113.8,3113.5,0.00453225]
[1644951953316,1.10293,3113.8,3113.6,0.7954753]
[1644951953515,1.10293,3113.8,3113.6,0.80000755]
[1644951953715,1.10293,3113.8,3113.7,0.7954753]
[1644951953914,0.3,3113.8,3113.7,0.00453225]
[1644951954115,0.3,3113.8,3113.7,0.7954753]
[1644951954614,1.10293,3113.8,3113.7,0.80000755]
[1644951957259,1.10293,3113.8,3113.7,0.70000755]
[1644951968717,1.60554,3114.4,3113.7,4.14528618]
[1644951968919,0.00258842,3114.4,3113.8,0.00453225]
[1644951969117,0.00258842,3114.4,3113.9,1.40661434]
[1644951969118,0.30258842,3114.4,3113.9,1.40661434]
[1644951969317,0.00258842,3114.4,3114.0,0.00453225]
[1644951969617,0.00258842,3114.4,3114.0,0.46753225]
[1644951969817,0.80272,3114.3,3114.1,1.11234809]
[1644951970218,1.10272,3114.3,3114.1,1.11234809]
[1644951971320,2.7083741,3114.3,3114.1,1.11234809]
[1644951972670,2.7083741,3114.3,3114.0,0.00453225]
[1644951972868,0.80283,3114.2,3114.0,0.00453225]
[1644951973871,2.05259476,3114.3,3114.0,0.88986884]
[1644951974470,0.80283,3114.2,3114.0,0.88986884]
[1644951975314,2.4085391,3114.2,3114.0,0.00453225]
[1644951977313,2.4085391,3114.2,3114.1,0.74990905]
[1644951977314,1.6057091,3114.2,3114.1,0.74990905]
[1644951977515,2.21740187,3114.2,3114.1,0.74990905]
[1644951981763,1.91169277,3114.2,3114.1,0.71487181]
[1644951981964,1.91169277,3114.2,3113.5,0.00453225]
[1644951982163,0.61422107,3114.0,3113.3,0.00712167]
[1644951982365,0.61422107,3114.0,3113.3,0.00258942]
[1644951982366,0.91422107,3114.0,3113.3,0.00258942]
[1644951982565,0.3,3113.9,3113.3,0.00258942]
[1644951982812,0.80325,3113.7,3113.3,0.00258942]
[1644951983016,0.3,3113.6,3113.3,0.00258942]
[1644951983212,0.3,3113.6,3113.1,0.00453225]
[1644951983412,0.6,3113.7,3113.3,0.00258926]
[1644951983613,1.60638,3113.6,3113.3,0.00258926]
[1644951983814,1.90639,3113.5,3113.3,0.00258926]
[1644951984015,0.3,3113.4,3113.3,0.00258926]
[1644951984413,1.9063269,3113.4,3112.6,0.60389434]
[1644951984713,1.9063269,3113.4,3113.2,0.00258929]
[1644951984912,2.9063269,3113.4,3113.2,0.00258929]
[1644951985115,0.80316,3113.3,3113.2,0.00258929]
[1644951985314,2.9063235,3113.3,3113.2,0.00258929]
[1644951985515,2.9063235,3113.3,3112.7,0.00453225]
[1644951985712,1.6064391,3113.2,3112.7,0.00453225]
[1644951985912,1.9064391,3113.2,3113.1,0.00258939]
[1644951986312,2.9064391,3113.2,3113.1,0.00258939]
[1644951986768,4.5128791,3113.2,3112.7,0.00453225]
[1644951986962,0.80323,3113.1,3112.7,0.00453225]
[1644951987564,1.60646,3113.1,3112.7,0.00453225]
[1644951987766,2.18802319,3113.5,3112.8,0.463]
[1644951987966,6.95856,3113.9,3112.9,4.15890187]
[1644951987967,2.9428,3113.9,3112.9,4.15890187]
[1644951988172,2.9428,3113.9,3113.0,1.0]
[1644951988367,2.9428,3113.9,3113.1,3.41714014]
[1644951988566,2.9428,3113.9,3113.2,0.46753225]
[1644951988765,2.9428,3113.9,3113.8,0.87361144]
[1644951988967,3.2115305,3114.1,3113.8,0.87361144]
[1644951989366,2.4086205,3114.1,3113.8,0.87361144]
[1644951989768,2.7086205,3114.1,3113.8,0.87361144]
[1644951989969,1.90572,3114.1,3113.8,0.87361144]
[1644951990824,1.90572,3114.1,3113.7,0.463]
[1644951991220,0.3,3114.1,3113.7,0.463]
[1644951991623,2.18839007,3114.5,3113.7,0.463]
[1644951991820,0.00284072,3114.4,3113.7,0.463]
[1644951992022,0.00284072,3114.4,3113.7,0.46753225]
[1644951992221,0.00284072,3114.4,3113.7,2.07142659]
[1644951992420,0.00284072,3114.4,3113.7,3.67699659]
[1644951992720,2.18839007,3114.5,3114.3,0.93052261]
[1644951992920,2.18839007,3114.5,3113.7,3.07310225]
[1644951992921,1.60548,3114.6,3114.0,0.463]
[1644951993121,2.23382401,3114.8,3114.0,0.463]
[1644951993122,0.00284076,3114.4,3114.0,0.463]
[1644951993721,0.80565076,3114.4,3114.0,0.463]
[1644951993966,0.80565076,3114.4,3114.2,1.12230399]
[1644951993967,0.80281,3114.4,3114.2,1.12230399]
[1644951994171,0.8056508,3114.4,3114.2,1.12230399]
[1644951994868,0.8056508,3114.4,3114.0,0.463]
[1644951995068,0.80281,3114.4,3114.0,0.463]
[1644951995270,0.80281,3114.4,3113.7,0.00453225]
[1644951995674,0.80281,3114.4,3113.5,0.463]
[1644951995675,0.80287,3114.3,3113.5,0.00453225]
[1644951995872,0.80287,3114.3,3113.6,0.00453225]
[1644951995873,0.80297,3114.2,3113.6,0.00453225]
[1644951996071,0.80297,3114.2,3113.3,0.00284181]
[1644951996072,0.3,3114.1,3113.3,0.00737406]
[1644951996267,0.3,3114.1,3113.3,0.00284181]
[1644951996472,0.3,3114.2,3113.1,0.00453225]
[1644951996669,1.0,3114.2,3113.3,0.00284169]
[1644951996970,1.6060466,3113.9,3113.3,1.04739698]
[1644951997169,1.9060466,3113.9,3113.4,0.00453225]
[1644951997569,2.9060466,3113.9,3113.4,0.00453225]
[1644951998013,1.60606,3113.8,3113.4,0.00453225]
[1644951998314,0.3,3113.7,3113.4,0.00453225]
[1644951999611,1.40302,3113.7,3113.4,0.00453225]
[1644951999812,0.8030613,3113.6,3113.4,0.00453225]
[1644952000012,2.40302,3113.7,3113.6,0.05913896]
[1644952001214,3.20607,3113.7,3113.6,0.05913896]
[1644952001973,3.85154462,3113.7,3113.6,0.05913896]
[1644952002167,3.85154462,3113.7,3113.6,0.77410639]
[1644952003571,3.04849462,3113.7,3113.6,0.77410639]
[1644952003774,1.24547462,3113.7,3113.6,0.77410639]
[1644952003970,1.6059665,3113.9,3113.6,0.77410639]
[1644952003971,0.80289,3113.9,3113.6,0.77410639]
[1644952004170,0.645251,3113.8,3113.7,0.71496743]
[1644952004570,0.645251,3113.9,3113.7,0.71496743]
[1644952004771,0.945251,3113.9,3113.7,0.71496743]
[1644952004973,0.645251,3113.8,3113.7,0.71496743]
[1644952005211,0.945251,3113.8,3113.7,0.71496743]
[1644952005418,1.945251,3113.8,3113.7,0.71496743]
[1644952006212,0.80314,3113.7,3113.6,0.05913896]
[1644952006415,1.448391,3113.7,3113.6,0.05913896]
[1644952006611,2.048391,3113.7,3113.6,0.05913896]
[1644952006811,3.048391,3113.7,3113.6,0.77344741]
[1644952007212,3.048391,3113.7,3113.6,0.05913896]
[1644952010469,0.0919895,3113.5,3113.3,0.00242759]
[1644952010669,1.448501,3113.4,3113.3,0.00242759]
[1644952010870,2.048501,3113.4,3113.0,0.00453225]
[1644952011172,0.645251,3113.3,3113.2,0.00242761]
[1644952011573,0.645251,3113.3,3113.2,0.71641641]
[1644952011770,1.4485018,3113.3,3113.2,0.00242761]
[1644952011971,1.4485018,3113.3,3113.2,0.00453225]
[1644952012171,3.2517518,3113.3,3113.1,0.00242998]
[1644952012372,0.645251,3113.2,3113.1,0.00242998]
[1644952012810,0.945251,3113.2,3113.1,0.00242998]
[1644952013012,0.945251,3113.2,3113.1,0.71188211]
[1644952013210,0.945251,3113.2,3113.1,0.70945213]
[1644952013412,1.90638,3113.1,3113.0,0.00243004]
[1644952013615,2.551631,3113.1,3113.0,0.00243004]
[1644952013912,1.90638,3113.1,3113.0,0.00243004]
[1644952014116,1.90638,3113.1,3113.0,0.71173765]
[1644952014513,1.90638,3113.1,3113.0,0.71383986]
[1644952015115,2.85572017,3113.1,3113.0,0.71383986]
[1644952015316,3.85572017,3113.1,3113.0,0.71383986]
[1644952015514,3.85572017,3113.1,3113.0,0.00453225]
[1644952015714,3.85572017,3113.1,3112.2,0.00453225]
[1644952015715,0.80336,3112.8,3112.2,0.00453225]
[1644952015913,1.60671,3112.8,3112.4,0.00971989]
[1644952016114,1.90671,3112.8,3112.5,0.7092268]
[1644952016313,1.90671,3112.8,3112.6,0.00453225]
[1644952016569,1.90671,3112.8,3112.7,0.7092268]
[1644952016770,1.90671,3112.8,3112.7,0.74958487]
[1644952016969,1.90671,3112.8,3112.7,0.75411712]
[1644952017164,3.8133796,3112.8,3112.7,0.75411712]
[1644952017365,3.0100196,3112.8,3112.7,0.75411712]
[1644952017566,4.0100196,3112.8,3112.7,0.75411712]
[1644952017766,2.40335,3112.8,3112.7,0.75411712]
[1644952017968,1.40335,3112.8,3112.7,0.75411712]
[1644952018570,1.10335,3112.8,3112.7,0.75411712]
[1644952018772,1.40335,3112.8,3112.7,0.75411712]
[1644952020070,0.6,3112.8,3112.7,0.75411712]
[1644952020513,0.3,3112.8,3112.7,0.75411712]
[1644952021412,1.10335,3112.8,3112.7,0.75411712]
[1644952021612,1.40335,3112.8,3112.7,0.75411712]
[1644952021817,2.40335,3112.8,3112.7,0.75411712]
[1644952022614,1.40335,3112.8,3112.7,0.75411712]
[1644952022812,1.10335,3112.8,3112.7,0.75411712]
[1644952023013,1.10335,3112.8,3112.7,0.74864424]
[1644952023316,2.40335,3112.8,3112.7,0.74864424]
[1644952023513,1.40335,3112.8,3112.7,0.74864424]
[1644952026563,1.10335,3112.8,3112.7,0.74864424]
[1644952029017,1.40335,3112.8,3112.7,0.74864424]
[1644952029216,2.70994,3112.8,3112.7,0.74864424]
[1644952030518,2.70994,3112.8,3112.7,0.04489032]
[1644952030718,2.70994,3112.8,3112.7,0.04035807]
[1644952031322,4.00994,3112.8,3112.7,0.04035807]
[1644952031583,4.00994,3112.8,3112.6,0.00279839]
[1644952031773,1.61422107,3112.7,3112.6,0.00279839]
[1644952031969,1.61422107,3112.7,3112.6,9.839e-05]
[1644952032169,1.61422107,3112.7,3111.4,0.8033]
[1644952032170,6.8,3112.5,3111.5,0.00453225]
[1644952032372,1.99734621,3112.4,3111.5,0.00453225]
[1644952032570,1.99734621,3112.4,3111.1,5.44311685]
[1644952032571,3.21422,3112.2,3111.3,0.00453225]
[1644952032771,0.6,3112.1,3111.3,0.00453225]
[1644952032972,0.6,3112.1,3111.0,0.00453225]
[1644952032973,1.6,3112.1,3111.0,0.00453225]
[1644952033171,0.803589,3112.0,3111.0,0.00453225]
[1644952033370,1.607149,3112.0,3110.8,0.01785328]
[1644952033570,4.814288,3112.1,3110.8,0.01785328]
[1644952033571,1.02430453,3111.9,3110.8,0.02238553]
[1644952033770,1.60713,3112.0,3110.8,0.02238553]
[1644952034170,0.8035804,3111.7,3110.8,0.02238553]
[1644952034472,1.1035804,3111.7,3110.8,0.02238553]
[1644952034670,0.80358,3111.7,3111.6,0.89746654]
[1644952034874,6.6422,3112.4,3111.6,4.373425]
[1644952034875,4.2315,3112.4,3111.6,4.373425]
[1644952035070,4.2315,3112.4,3111.7,0.00453225]
[1644952035327,0.8033432,3112.2,3111.7,0.00453225]
[1644952035728,0.8033432,3112.2,3112.1,0.9615526]
[1644952037229,1.90669,3112.4,3112.1,0.9615526]
[1644952037430,1.90669,3112.4,3112.1,0.96608485]
[1644952037632,6.90892,3112.7,3112.2,3.53215807]
[1644952037633,0.00244966,3112.7,3112.2,3.53215807]
[1644952037829,0.00244966,3112.7,3112.4,0.80313]
[1644952038028,0.80562966,3112.7,3112.5,0.00453225]
[1644952038228,0.80562966,3112.7,3112.3,0.00453225]
[1644952038429,1.60882916,3112.7,3112.3,0.00453225]
[1644952038629,1.6063795,3112.7,3112.3,0.00453225]
[1644952038828,1.60882944,3112.7,3112.3,0.00453225]
[1644952039766,1.6063795,3112.7,3112.3,0.00453225]
[1644952039970,1.6066445,3112.6,3112.3,0.00453225]
[1644952040167,0.95036409,3112.6,3112.3,0.00453225]
[1644952041170,0.80332,3112.4,3112.3,0.00453225]
[1644952041372,0.80332,3112.4,3112.0,0.00453225]
[1644952041867,0.80332,3112.4,3111.9,0.00268316]
[1644952042266,1.6066855,3112.4,3111.7,3.34519748]
[1644952042469,1.6066855,3112.4,3112.0,0.84239484]
[1644952042470,0.80332,3112.4,3112.0,0.84239484]
[1644952042717,0.80332,3112.4,3112.1,0.00453225]
[1644952042918,0.80336,3112.4,3112.2,0.65444637]
[1644952043119,0.80336,3112.4,3112.3,3.46526675]
[1644952043319,0.8032446,3112.6,3112.3,4.03287729]
[1644952043521,0.8032446,3112.6,3112.4,3.99330359]
[1644952043719,0.8032446,3112.6,3112.5,0.65444637]
[1644952043920,0.00242829,3112.7,3112.5,0.00453225]
[1644952044120,0.00242829,3112.7,3112.6,0.65444637]
[1644952044523,0.70310243,3113.0,3112.6,0.65444637]
[1644952044721,0.8032,3112.7,3112.6,0.65897862]
[1644952045220,0.8032,3112.7,3112.6,0.65444637]
[1644952045620,0.8032,3112.7,3112.4,0.65444637]
[1644952045820,0.8032,3112.7,3112.5,0.65897862]
[1644952046020,0.8032,3112.7,3112.6,0.65444637]
[1644952047063,0.8032,3112.7,3112.6,1.78012449]
[1644952047768,0.8032,3112.7,3112.6,1.78031782]
[1644952048162,2.4096699,3112.8,3112.6,0.6546397]
[1644952048362,2.4121021,3112.8,3112.6,0.6546397]
[1644952048562,3.2153721,3112.8,3112.7,0.6546397]
[1644952048763,3.5153721,3112.8,3112.7,0.6546397]
[1644952048962,2.7121021,3112.8,3112.7,0.6546397]
[1644952049362,2.7096699,3112.8,3112.7,0.6546397]
[1644952049965,2.4098,3112.7,3112.3,0.93581557]
[1644952050216,0.70390619,3112.6,3112.4,0.65465854]
[1644952050415,1.50716309,3112.6,3112.5,0.00453225]
[1644952050621,1.50716309,3112.6,3112.5,0.60919079]
[1644952050815,1.50716309,3112.6,3112.3,0.93128332]
[1644952051015,0.8032569,3112.6,3112.3,0.93128332]
[1644952051416,0.8020069,3112.6,3112.3,0.93128332]
[1644952051617,0.7785369,3112.6,3112.3,0.93128332]
[1644952052017,3.2130745,3112.7,3112.4,8.82385467]